bitfinex/quotes_BTCUSD_20241010
["timestamp","ask_amount","ask_price","bid_price","bid_amount"]
[1728593449068,0.000488,59775.0,59774.0,0.1693093]
[1728593450562,0.000488,59775.0,59774.0,0.1723093]
[1728593451628,0.000488,59775.0,59774.0,0.2598093]
[1728593451839,0.167782,59775.0,59774.0,0.008]
[1728593452046,0.18338041,59775.0,59774.0,0.008]
[1728593452930,0.01608641,59775.0,59774.0,0.008]
[1728593453144,0.334572,59778.0,59774.0,0.008]
[1728593453145,0.000488,59777.0,59774.0,0.008]
[1728593453353,0.167294,59775.0,59774.0,0.008]
[1728593453564,0.334561,59780.0,59774.0,0.008]
[1728593453565,0.000488,59777.0,59775.0,0.0803]
[1728593453770,0.000488,59777.0,59776.0,0.1693093]
[1728593454202,0.00600136,59777.0,59776.0,0.1694093]
[1728593454627,0.02161411,59777.0,59776.0,0.1694093]
[1728593455322,0.00600136,59777.0,59776.0,0.1794093]
[1728593455570,0.02162297,59777.0,59776.0,0.1794093]
[1728593455809,0.02162297,59777.0,59776.0,0.1864093]
[1728593456488,0.02162297,59777.0,59776.0,0.1794093]
[1728593456944,0.02162297,59777.0,59776.0,0.1694093]
[1728593457150,0.02162297,59777.0,59776.0,0.1784093]
[1728593457377,0.00600136,59777.0,59776.0,0.1904093]
[1728593457588,0.18893947,59777.0,59776.0,0.1904093]
[1728593457799,0.02165147,59777.0,59776.0,0.1904093]
[1728593458014,0.02165147,59777.0,59776.0,0.1784093]
[1728593458426,0.02165147,59777.0,59776.0,0.1914093]
[1728593458653,0.02165147,59777.0,59776.0,0.1694093]
[1728593458897,0.02165147,59777.0,59776.0,0.1924093]
[1728593459370,0.02165147,59777.0,59776.0,0.1824093]
[1728593459623,0.18893947,59777.0,59776.0,0.1914093]
[1728593460081,0.18893947,59777.0,59776.0,0.1824093]
[1728593460312,0.18893947,59777.0,59776.0,0.1694093]
[1728593460571,0.18893947,59777.0,59776.0,0.1774093]
[1728593460805,0.18896557,59777.0,59776.0,0.1894093]
[1728593461034,0.02167757,59777.0,59776.0,0.1774093]
[1728593461278,0.02167757,59777.0,59776.0,0.1884093]
[1728593461518,0.18896557,59777.0,59776.0,0.0191]
[1728593462695,0.18896557,59777.0,59776.0,0.0111]
[1728593462937,0.18896557,59777.0,59776.0,0.0191]
[1728593463179,0.02167757,59777.0,59776.0,0.1884093]
[1728593463434,0.02119262,59777.0,59776.0,0.3477003]
[1728593463652,0.02119262,59777.0,59776.0,0.3517003]
[1728593463874,0.01567926,59777.0,59776.0,0.3407003]
[1728593464092,0.02152386,59777.0,59776.0,0.3517003]
[1728593464308,0.02152386,59777.0,59776.0,0.3407003]
[1728593464736,0.02152386,59777.0,59776.0,0.3537003]
[1728593464944,0.02152386,59777.0,59776.0,0.3497003]
[1728593465447,0.02201186,59777.0,59776.0,0.3597003]
[1728593466086,0.02152386,59777.0,59776.0,0.3497003]
[1728593466533,0.0058446,59777.0,59776.0,0.3597003]
[1728593466752,0.02151833,59777.0,59776.0,0.3597003]
[1728593467455,0.01648873,59777.0,59776.0,0.3597003]
[1728593470040,0.02233377,59777.0,59776.0,0.3597003]
[1728593470493,0.01648873,59777.0,59776.0,0.3597003]
[1728593471392,0.01648873,59777.0,59776.0,0.3497003]
[1728593471609,0.01648873,59777.0,59776.0,0.3487003]
[1728593471819,0.01648873,59777.0,59776.0,0.3627003]
[1728593472033,0.01648873,59777.0,59776.0,0.3507003]
[1728593472457,0.01648873,59777.0,59776.0,0.3627003]
[1728593473336,0.01648873,59777.0,59776.0,0.3487003]
[1728593473543,0.01648873,59777.0,59776.0,1.8487003]
[1728593473774,0.01648873,59777.0,59776.0,1.8627003]
[1728593474004,0.01648873,59777.0,59776.0,1.8791893]
[1728593476622,0.01648873,59777.0,59776.0,2.41353301]
[1728593476849,0.01648873,59777.0,59776.0,2.1620893]
[1728593476850,0.000815,59777.0,59776.0,2.1620893]
[1728593477500,0.000815,59777.0,59776.0,2.1310893]
[1728593477766,0.000815,59777.0,59776.0,2.27035688]
[1728593477980,0.000815,59777.0,59776.0,2.28435688]
[1728593478601,0.000815,59777.0,59776.0,2.41141166]
[1728593479593,0.000815,59777.0,59776.0,2.28614408]
[1728593479839,0.000815,59777.0,59776.0,2.41141166]
[1728593480268,0.000815,59777.0,59776.0,2.29114408]
[1728593480489,0.000815,59777.0,59776.0,2.35912981]
[1728593480687,0.000815,59777.0,59776.0,2.35761781]
[1728593481264,0.000815,59777.0,59776.0,2.34361781]
[1728593481478,0.000815,59777.0,59776.0,2.35761781]
[1728593481710,0.000815,59777.0,59776.0,2.48278255]
[1728593481943,0.000815,59777.0,59776.0,2.35761781]
[1728593482178,0.000815,59777.0,59776.0,2.34361781]
[1728593482602,0.000815,59777.0,59776.0,2.35761781]
[1728593482837,0.000815,59777.0,59776.0,2.85761781]
[1728593483268,0.000815,59777.0,59776.0,2.96876067]
[1728593484143,0.000815,59777.0,59776.0,2.98276067]
[1728593484570,0.000815,59777.0,59776.0,2.96876067]
[1728593484786,0.000815,59777.0,59776.0,2.98276067]
[1728593486515,0.000815,59777.0,59776.0,2.85761781]
[1728593486996,0.000815,59777.0,59776.0,2.82961781]
[1728593487209,0.000815,59777.0,59776.0,2.84361781]
[1728593487437,0.000815,59777.0,59776.0,2.85761781]
[1728593487651,0.000815,59777.0,59776.0,2.98276067]
[1728593487869,0.000815,59777.0,59776.0,3.17622859]
[1728593488090,0.000815,59777.0,59776.0,3.05114632]
[1728593488307,0.000815,59777.0,59776.0,3.03714632]
[1728593488745,0.000815,59777.0,59776.0,4.05363504]
[1728593488956,0.000815,59777.0,59776.0,4.03963504]
[1728593489168,0.000815,59777.0,59776.0,3.89104832]
[1728593489997,0.000815,59777.0,59776.0,3.87704832]
[1728593490202,0.000815,59777.0,59776.0,3.89104832]
[1728593490408,0.000815,59777.0,59776.0,3.90504832]
[1728593490796,0.000815,59777.0,59776.0,3.89104832]
[1728593490999,0.000815,59777.0,59776.0,3.90504832]
[1728593491611,0.000815,59777.0,59776.0,5.4845606]
[1728593491796,0.000815,59777.0,59776.0,5.48456075]
[1728593491997,0.000815,59777.0,59776.0,5.45500175]
[1728593492404,0.000815,59777.0,59776.0,5.30498832]
[1728593492615,0.000815,59781.0,59780.0,0.006512]
[1728593492830,0.000815,59781.0,59780.0,1.00982981]
[1728593493046,0.000815,59781.0,59780.0,1.97346581]
[1728593493323,0.000815,59781.0,59780.0,3.62346573]
[1728593493795,0.000815,59781.0,59780.0,3.48746581]
[1728593494989,0.000815,59781.0,59780.0,3.47346581]
[1728593495208,0.000815,59781.0,59780.0,3.48746581]
[1728593495440,0.000815,59781.0,59780.0,3.50146581]
[1728593495677,0.000815,59781.0,59780.0,3.65138868]
[1728593496409,0.000815,59781.0,59780.0,3.63737333]
[1728593496636,0.000815,59781.0,59780.0,3.65137333]
[1728593496861,0.000815,59781.0,59780.0,3.50146581]
[1728593498383,0.000815,59781.0,59780.0,3.6711437]
[1728593500302,0.000815,59781.0,59780.0,3.3984517]
[1728593500514,0.000815,59781.0,59780.0,3.45886911]
[1728593500941,0.000815,59781.0,59780.0,3.46555811]
[1728593504017,0.000815,59781.0,59780.0,2.45534653]
[1728593504233,0.000815,59781.0,59780.0,2.56003649]
[1728593506820,0.000815,59781.0,59780.0,2.43515849]
[1728593507031,0.000815,59781.0,59780.0,2.14604749]
[1728593508591,0.000815,59781.0,59780.0,2.12304749]
[1728593509892,0.000815,59781.0,59780.0,2.23127149]
[1728593510108,0.000815,59781.0,59780.0,2.12304749]
[1728593514567,0.000815,59781.0,59780.0,2.62304749]
[1728593515461,0.000815,59781.0,59780.0,2.77300447]
[1728593515836,0.000815,59781.0,59780.0,2.77311832]
[1728593517613,0.000815,59781.0,59780.0,2.62304749]
[1728593520651,0.000815,59781.0,59780.0,2.6462907]
[1728593521066,0.000815,59781.0,59780.0,2.49607453]
[1728593521524,0.000815,59781.0,59780.0,2.6412907]
[1728593521737,0.000815,59781.0,59780.0,2.4712783]
[1728593522406,0.000815,59781.0,59780.0,2.4572783]
[1728593522613,0.000815,59781.0,59780.0,2.58425126]
[1728593523073,1e-06,59782.0,59781.0,0.005]
[1728593523075,1e-06,59784.0,59783.0,0.295271]
[1728593523325,1e-06,59784.0,59783.0,2.37909972]
[1728593523555,1e-06,59784.0,59783.0,2.35520772]
[1728593523789,1e-06,59784.0,59783.0,1.27626872]
[1728593524013,1e-06,59784.0,59783.0,2.75307511]
[1728593524474,1e-06,59784.0,59783.0,2.70659002]
[1728593524912,1e-06,59784.0,59783.0,2.72059002]
[1728593525130,1e-06,59784.0,59783.0,2.70659002]
[1728593525591,1e-06,59784.0,59783.0,2.72059002]
[1728593526486,1e-06,59784.0,59783.0,2.70659002]
[1728593526947,1e-06,59784.0,59783.0,2.69259002]
[1728593527167,1e-06,59784.0,59783.0,2.72059002]
[1728593527627,1e-06,59784.0,59783.0,2.69259002]
[1728593527844,1e-06,59784.0,59783.0,2.72059002]
[1728593528055,1e-06,59784.0,59783.0,2.70659002]
[1728593528268,1e-06,59784.0,59783.0,3.31735702]
[1728593528495,1e-06,59784.0,59783.0,3.25870002]
[1728593528943,1e-06,59784.0,59783.0,2.75624902]
[1728593529154,1e-06,59784.0,59783.0,2.39349402]
[1728593529342,1e-06,59784.0,59783.0,2.38138402]
[1728593529597,1e-06,59784.0,59783.0,2.36738402]
[1728593529814,1e-06,59784.0,59783.0,2.38138402]
[1728593530026,1e-06,59784.0,59783.0,2.36738402]
[1728593530480,1e-06,59784.0,59783.0,2.35718602]
[1728593530694,1e-06,59784.0,59783.0,2.24078402]
[1728593530928,1e-06,59784.0,59783.0,2.02432319]
[1728593531147,1e-06,59784.0,59783.0,1.97208869]
[1728593532041,1e-06,59784.0,59783.0,1.86708869]
[1728593532266,0.080189,59784.0,59783.0,1.86708869]
[1728593532485,0.080189,59784.0,59783.0,1.99240873]
[1728593532704,0.343057,59784.0,59783.0,0.15582843]
[1728593532936,0.343057,59784.0,59781.0,0.05013254]
[1728593532937,0.000488,59782.0,59781.0,0.05013254]
[1728593533154,0.000488,59782.0,59780.0,0.50163]
[1728593533155,0.53272583,59781.0,59780.0,0.50163]
[1728593533372,0.5483921,59781.0,59780.0,0.50163]
[1728593533595,0.36024852,59781.0,59780.0,0.50163]
[1728593534061,0.19297152,59781.0,59780.0,0.50163]
[1728593534279,0.19297152,59781.0,59780.0,0.8382193]
[1728593534488,0.19297152,59781.0,59780.0,0.8522193]
[1728593534713,0.18765427,59781.0,59780.0,0.8522193]
[1728593534939,0.18765427,59781.0,59780.0,0.8582193]
[1728593535825,0.18765427,59781.0,59780.0,0.8442193]
[1728593535826,0.171988,59781.0,59780.0,0.8442193]
[1728593536035,0.18862762,59781.0,59780.0,0.6849393]
[1728593536245,0.35490462,59781.0,59780.0,0.6709393]
[1728593536495,0.3602162,59781.0,59780.0,0.6709393]
[1728593536688,0.1949392,59781.0,59780.0,0.6959393]
[1728593537045,0.1949392,59781.0,59780.0,0.6829393]
[1728593537244,0.1939392,59781.0,59780.0,0.6829393]
[1728593537462,0.1949392,59781.0,59780.0,0.6949393]
[1728593538342,0.3622162,59781.0,59780.0,0.6949393]
[1728593538543,0.1949392,59781.0,59780.0,0.52563]
[1728593538912,0.34657658,59781.0,59780.0,0.52563]
[1728593539320,0.36220177,59781.0,59780.0,0.52563]
[1728593540090,0.36220177,59781.0,59780.0,0.52813909]
[1728593540091,0.19492477,59781.0,59780.0,0.52813909]
[1728593541166,0.36220177,59781.0,59780.0,0.52813909]
[1728593541379,0.36219378,59781.0,59780.0,0.52813909]
[1728593542503,0.34657658,59781.0,59780.0,0.52813909]
[1728593542921,0.36219022,59781.0,59780.0,0.52813909]
[1728593543156,0.19491322,59781.0,59780.0,0.52813909]
[1728593543367,0.17929958,59781.0,59780.0,0.52813909]
[1728593543790,0.34657658,59781.0,59780.0,0.52563]
[1728593543996,0.36218852,59781.0,59780.0,0.52563]
[1728593549008,0.36218852,59781.0,59780.0,0.02563]
[1728593550897,0.36718852,59781.0,59780.0,0.02563]
[1728593551117,0.56064935,59781.0,59780.0,0.02563]
[1728593551338,0.36718852,59781.0,59780.0,0.02563]
[1728593551554,0.36718852,59781.0,59780.0,0.01363]
[1728593551806,0.36618852,59781.0,59780.0,0.01363]
[1728593552332,0.36818852,59781.0,59780.0,0.01363]
[1728593552540,0.36718852,59781.0,59780.0,0.00163]
[1728593552953,0.36818852,59781.0,59780.0,0.00163]
[1728593553371,0.36718852,59781.0,59780.0,0.00163]
[1728593554404,0.36518852,59781.0,59780.0,0.00163]
[1728593554825,0.37018852,59781.0,59780.0,0.00163]
[1728593555241,0.36618852,59781.0,59780.0,0.00163]
[1728593555380,0.36818852,59781.0,59780.0,0.00163]
[1728593555795,0.37018852,59781.0,59780.0,0.00163]
[1728593556011,0.36718852,59781.0,59780.0,0.00163]
[1728593556215,0.37118852,59781.0,59780.0,0.00163]
[1728593557923,0.36718852,59781.0,59780.0,0.00163]
[1728593558128,0.36518852,59781.0,59780.0,0.00163]
[1728593558326,0.36918852,59781.0,59780.0,0.00163]
[1728593558743,0.36418852,59781.0,59780.0,0.00163]
[1728593558967,0.36419918,59781.0,59780.0,0.00163]
[1728593559625,0.36119918,59781.0,59780.0,0.00163]
[1728593560528,0.36019918,59781.0,59780.0,0.00163]
[1728593560973,0.36119918,59781.0,59780.0,0.00863]
[1728593561222,0.36019918,59781.0,59780.0,0.00163]
[1728593561436,0.36419918,59781.0,59780.0,0.00863]
[1728593561867,0.36119918,59781.0,59780.0,0.00863]
[1728593562274,0.10212218,59781.0,59780.0,0.01263]
[1728593562529,0.26939918,59781.0,59780.0,0.01263]
[1728593562732,0.02242218,59781.0,59780.0,0.01263]
[1728593562936,0.02193418,59781.0,59780.0,0.3492193]
[1728593563330,0.0171106,59781.0,59780.0,0.3492193]
[1728593564167,0.0171106,59781.0,59780.0,1.8492193]
[1728593565582,0.001488,59781.0,59780.0,1.8492193]
[1728593565781,0.0171507,59781.0,59780.0,1.8492193]
[1728593566126,0.02229239,59781.0,59780.0,1.8492193]
[1728593566480,0.02180439,59781.0,59780.0,1.8492193]
[1728593566890,0.0166627,59781.0,59780.0,1.8492193]
[1728593567085,0.0166627,59781.0,59780.0,0.3492193]
[1728593567584,0.0166627,59781.0,59780.0,1.8492193]
[1728593567795,0.0156627,59781.0,59780.0,1.8422193]
[1728593568163,0.0166627,59781.0,59780.0,1.8492193]
[1728593568357,0.0166627,59781.0,59780.0,0.3492193]
[1728593568572,0.0166627,59781.0,59780.0,0.3572193]
[1728593568573,0.0176627,59781.0,59780.0,0.3572193]
[1728593568772,0.19003148,59781.0,59780.0,0.02063]
[1728593568996,0.19002774,59781.0,59780.0,0.02063]
[1728593573264,0.18902774,59781.0,59780.0,0.00963]
[1728593573708,0.18902774,59781.0,59780.0,0.01163]
[1728593573915,0.18902774,59781.0,59780.0,0.00963]
[1728593574121,0.18902774,59781.0,59780.0,0.00163]
[1728593574122,0.18802774,59781.0,59780.0,0.00163]
[1728593574343,0.18802774,59781.0,59780.0,0.00863]
[1728593574344,0.18902774,59781.0,59780.0,0.00863]
[1728593574764,0.18802774,59781.0,59780.0,0.00163]
[1728593575202,0.17236878,59781.0,59780.0,0.00363]
[1728593575441,0.18803292,59781.0,59780.0,0.00363]
[1728593576505,0.18803292,59781.0,59780.0,0.00163]
[1728593576736,0.18803292,59781.0,59780.0,0.00263]
[1728593577389,0.18903292,59781.0,59780.0,0.00263]
[1728593578025,0.18803292,59781.0,59780.0,0.00163]
[1728593578235,0.19003292,59781.0,59780.0,0.00163]
[1728593579082,0.19003352,59781.0,59780.0,0.00163]
[1728593579917,0.19103352,59781.0,59780.0,0.00163]
[1728593580125,0.18903352,59781.0,59780.0,0.00163]
[1728593580352,0.19303352,59781.0,59780.0,0.00163]
[1728593583220,0.19303352,59781.0,59780.0,0.1709393]
[1728593583221,0.19254552,59781.0,59780.0,0.1709393]
[1728593583740,0.02126852,59781.0,59780.0,1.8382193]
[1728593583968,0.02126852,59781.0,59780.0,1.6709393]
[1728593583969,0.02226852,59781.0,59780.0,1.6709393]
[1728593584201,0.18394174,59781.0,59780.0,0.1709393]
[1728593584417,0.04681671,59781.0,59780.0,0.1779393]
[1728593584830,0.04221555,59781.0,59780.0,0.1829393]
[1728593585046,0.168765,59781.0,59780.0,0.1829393]
[1728593585254,0.19843003,59781.0,59780.0,0.1829393]
[1728593585472,0.18903149,59781.0,59780.0,0.1829393]
[1728593585897,0.18803149,59781.0,59780.0,0.1759393]
[1728593586103,0.18903149,59781.0,59780.0,0.1799393]
[1728593586324,0.21309792,59781.0,59780.0,0.1779393]
[1728593586564,0.21409792,59781.0,59780.0,0.1779393]
[1728593586771,0.21509792,59781.0,59780.0,0.1859393]
[1728593586989,0.21409792,59781.0,59780.0,0.1789393]
[1728593587190,0.21409792,59781.0,59780.0,0.1849393]
[1728593590023,0.29179792,59781.0,59780.0,0.01563]
[1728593590500,0.27173149,59781.0,59780.0,0.01563]
[1728593590924,0.27173149,59781.0,59780.0,0.00963]
[1728593592209,0.27173149,59781.0,59780.0,0.01563]
[1728593592638,0.27173149,59781.0,59780.0,0.00963]
[1728593592891,0.27073149,59781.0,59780.0,0.00163]
[1728593593305,0.27573149,59781.0,59780.0,0.00163]
[1728593593520,0.19303149,59781.0,59780.0,0.00163]
[1728593593731,0.19503149,59781.0,59780.0,0.00163]
[1728593594618,0.02526649,59781.0,59780.0,0.1709393]
[1728593594840,0.02575449,59781.0,59780.0,0.1709393]
[1728593595071,0.02575449,59781.0,59780.0,0.1739393]
[1728593595547,0.02075449,59781.0,59780.0,0.1739393]
[1728593596212,0.02075449,59781.0,59780.0,0.1709393]
[1728593596426,0.02075449,59781.0,59780.0,0.1739393]
[1728593596644,0.01566422,59781.0,59780.0,0.3412193]
[1728593597270,0.01566422,59781.0,59780.0,0.3442193]
[1728593597476,0.01666422,59781.0,59780.0,0.3542193]
[1728593597682,0.01666422,59781.0,59780.0,0.3382193]
[1728593597936,0.01566422,59781.0,59780.0,0.3382193]
[1728593598097,0.01766422,59781.0,59780.0,0.3572193]
[1728593598927,0.002,59781.0,59780.0,0.3572193]
[1728593599132,0.01767102,59781.0,59780.0,0.3572193]
[1728593599339,0.01767102,59781.0,59780.0,1.8572193]
[1728593601660,0.01815902,59781.0,59780.0,1.8572193]
[1728593602086,0.01767102,59781.0,59780.0,1.8572193]
[1728593603419,0.01767102,59781.0,59780.0,2.02781183]
[1728593603622,0.01767102,59781.0,59780.0,2.07844853]
[1728593603830,0.01767102,59781.0,59780.0,2.0283193]
[1728593604046,0.01767102,59781.0,59780.0,2.12857601]
[1728593604047,0.002,59781.0,59780.0,2.12857601]
[1728593604261,0.001,59781.0,59780.0,2.10957601]
[1728593604501,0.000815,59783.0,59782.0,0.167274]
[1728593604722,0.01647522,59783.0,59782.0,0.33797931]
[1728593604940,0.01647522,59783.0,59782.0,0.3365833]
[1728593605162,0.01647522,59783.0,59782.0,1.8866975]
[1728593607154,0.01647522,59783.0,59782.0,1.8976975]
[1728593607376,0.01647522,59783.0,59782.0,1.9116975]
[1728593607806,0.01647522,59783.0,59782.0,2.23870935]
[1728593608020,0.000815,59783.0,59782.0,2.32250935]
[1728593608247,0.000815,59783.0,59782.0,2.33525264]
[1728593608455,0.000815,59783.0,59782.0,2.34025264]
[1728593608692,0.000815,59783.0,59782.0,2.32625264]
[1728593609543,0.000815,59783.0,59782.0,2.31325264]
[1728593609973,0.000815,59783.0,59782.0,2.32725264]
[1728593610196,0.000815,59783.0,59782.0,2.34125264]
[1728593610407,0.000815,59783.0,59782.0,2.32725264]
[1728593610876,0.000815,59783.0,59782.0,2.34125264]
[1728593611316,0.000815,59783.0,59782.0,2.32725264]
[1728593611517,0.000815,59783.0,59782.0,2.34125264]
[1728593612366,0.000815,59783.0,59782.0,2.46633543]
[1728593612784,0.000815,59783.0,59782.0,2.34125264]
[1728593613233,0.000815,59783.0,59782.0,2.46630738]
[1728593614923,0.000815,59783.0,59782.0,2.46781938]
[1728593615137,0.000815,59783.0,59782.0,2.46630738]
[1728593615347,0.000815,59783.0,59782.0,2.34125264]
[1728593616348,0.000815,59783.0,59782.0,2.94124002]
[1728593616548,0.000815,59783.0,59782.0,2.94275202]
[1728593616954,0.000815,59783.0,59782.0,2.86576464]
[1728593617334,0.000815,59783.0,59782.0,2.96573606]
[1728593617541,0.000815,59783.0,59782.0,2.86576464]
[1728593617986,0.000815,59783.0,59782.0,2.86588264]
[1728593620436,0.000815,59783.0,59782.0,2.99078529]
[1728593620950,0.000815,59783.0,59782.0,2.86588264]
[1728593621215,0.000815,59783.0,59782.0,2.99078707]
[1728593628323,0.000815,59783.0,59782.0,2.9907647]
[1728593628755,0.000815,59783.0,59782.0,2.86588264]
[1728593628969,0.000815,59783.0,59782.0,2.9907647]
[1728593630043,0.000815,59783.0,59782.0,2.86588264]
[1728593630760,0.000815,59783.0,59782.0,2.84288264]
[1728593631771,0.000815,59783.0,59782.0,2.96776619]
[1728593632397,0.000815,59783.0,59782.0,2.84288264]
[1728593636468,0.000815,59783.0,59782.0,2.77641147]
[1728593638798,0.000815,59783.0,59782.0,2.46872181]
[1728593639739,0.01649455,59783.0,59782.0,2.46872181]
[1728593640969,0.000815,59783.0,59782.0,2.46872181]
[1728593641919,0.000815,59783.0,59782.0,2.51875007]
[1728593642411,0.000815,59783.0,59782.0,2.46872181]
[1728593643654,0.000815,59783.0,59782.0,2.51876666]
[1728593644212,0.000815,59783.0,59782.0,2.54379078]
[1728593644444,0.000815,59783.0,59782.0,2.20144781]
[1728593644445,0.173415,59783.0,59782.0,2.20144781]
[1728593644681,0.18957392,59783.0,59782.0,2.20144781]
[1728593644896,0.18957392,59783.0,59782.0,2.36872181]
[1728593645110,0.18908592,59783.0,59782.0,2.35472181]
[1728593645543,0.18957392,59783.0,59782.0,2.35472181]
[1728593646406,0.18957392,59783.0,59782.0,2.35272181]
[1728593647046,0.18957392,59783.0,59782.0,2.36572181]
[1728593647274,0.18908592,59783.0,59782.0,2.35372181]
[1728593647689,0.18908592,59783.0,59782.0,2.36372181]
[1728593648263,0.18907384,59783.0,59782.0,2.36372181]
[1728593648687,0.18907099,59783.0,59782.0,2.36372181]
[1728593648896,0.173415,59783.0,59782.0,2.36372181]
[1728593649317,0.173415,59783.0,59782.0,2.39079605]
[1728593649547,0.173903,59783.0,59782.0,2.39079605]
[1728593649788,0.173903,59783.0,59782.0,2.41679605]
[1728593649990,0.173903,59783.0,59782.0,2.40279605]
[1728593650200,0.173903,59783.0,59782.0,2.40479605]
[1728593650411,0.173903,59783.0,59782.0,2.41579605]
[1728593651713,0.081615,59783.0,59782.0,2.41579605]
[1728593652152,0.000815,59783.0,59782.0,2.41579605]
[1728593652397,0.000815,59783.0,59782.0,2.60935029]
[1728593652920,0.000815,59783.0,59782.0,2.73453589]
[1728593653130,0.000815,59783.0,59782.0,2.78446166]
[1728593653347,0.000815,59783.0,59782.0,2.65927605]
[1728593653555,0.000815,59783.0,59782.0,2.78451399]
[1728593654388,0.000815,59783.0,59782.0,2.80426368]
[1728593654609,0.000815,59783.0,59782.0,2.67902574]
[1728593657493,0.000815,59783.0,59782.0,2.66802574]
[1728593657913,0.000815,59783.0,59782.0,2.65402574]
[1728593658124,0.000815,59783.0,59782.0,2.66802574]
[1728593658334,0.000815,59783.0,59782.0,2.68202574]
[1728593658541,0.000815,59783.0,59782.0,2.66802574]
[1728593658748,0.000815,59783.0,59782.0,2.68202574]
[1728593659899,0.000815,59783.0,59782.0,2.66802574]
[1728593660115,0.000815,59783.0,59782.0,2.68202574]
[1728593660499,0.000815,59783.0,59782.0,2.6154724]
[1728593660898,0.000815,59783.0,59782.0,2.46872181]
[1728593661101,0.000815,59783.0,59782.0,2.56891746]
[1728593661299,0.000815,59783.0,59782.0,2.46872181]
[1728593661509,0.000815,59783.0,59782.0,2.54386718]
[1728593661791,0.000815,59783.0,59782.0,2.46872181]
[1728593662478,0.000815,59783.0,59782.0,0.91881793]
[1728593662969,0.09737375,59783.0,59782.0,0.6989393]
[1728593663185,0.36363275,59783.0,59782.0,0.52963]
[1728593663413,0.36363275,59783.0,59782.0,0.51563]
[1728593663628,0.36363275,59783.0,59782.0,0.52963]
[1728593664124,0.36363275,59783.0,59782.0,0.51563]
[1728593664344,0.36363275,59783.0,59782.0,0.51063]
[1728593664561,0.36363275,59783.0,59782.0,0.52463]
[1728593664984,0.36363275,59783.0,59782.0,0.51063]
[1728593665200,0.36363275,59783.0,59782.0,0.52363]
[1728593670172,0.36363275,59783.0,59782.0,0.02363]
[1728593672601,0.347974,59783.0,59782.0,0.02363]
[1728593672812,0.36362725,59783.0,59782.0,0.02363]
[1728593676096,0.347974,59783.0,59782.0,0.02363]
[1728593676335,0.36362542,59783.0,59782.0,0.02363]
[1728593684323,0.55728521,59783.0,59782.0,0.02363]
[1728593686451,0.49071629,59783.0,59782.0,0.02363]
[1728593686706,0.49571629,59783.0,59782.0,0.02363]
[1728593686930,0.48006487,59783.0,59782.0,0.02363]
[1728593687141,0.49572225,59783.0,59782.0,0.02363]
[1728593687774,0.49572225,59783.0,59782.0,0.01463]
[1728593688026,0.49572225,59783.0,59782.0,0.00163]
[1728593688260,0.49572225,59783.0,59782.0,0.00263]
[1728593688510,0.49572225,59783.0,59782.0,0.00163]
[1728593690474,0.48006487,59783.0,59782.0,0.00163]
[1728593690688,0.49573748,59783.0,59782.0,0.00163]
[1728593694143,0.48006487,59783.0,59782.0,0.00163]
[1728593694414,0.49574329,59783.0,59782.0,0.00163]
[1728593695510,0.79005259,59783.0,59782.0,0.00163]
[1728593695733,0.66296172,59783.0,59782.0,0.00163]
[1728593696379,0.68245761,59783.0,59782.0,0.00163]
[1728593696808,0.66296172,59783.0,59782.0,0.00163]
[1728593697555,0.6472833,59783.0,59782.0,0.00163]
[1728593697774,0.66295239,59783.0,59782.0,0.00163]
[1728593698197,0.66295239,59783.0,59782.0,0.00263]
[1728593699316,0.66595239,59783.0,59782.0,0.00363]
[1728593699740,0.49464309,59783.0,59782.0,0.00363]
[1728593699950,0.59573396,59783.0,59782.0,0.00163]
[1728593700380,0.47164309,59783.0,59782.0,0.00363]
[1728593700598,0.49873396,59783.0,59782.0,0.00263]
[1728593700852,0.4957269,59783.0,59782.0,0.00163]
[1728593701064,0.4987269,59783.0,59782.0,0.00263]
[1728593702373,0.36863603,59783.0,59782.0,0.00163]
[1728593703207,0.352974,59783.0,59782.0,0.00163]
[1728593703674,0.47506487,59783.0,59782.0,0.00163]
[1728593703876,0.29566487,59783.0,59782.0,0.00163]
[1728593704511,0.29566487,59783.0,59782.0,0.00263]
[1728593704998,0.29566487,59783.0,59782.0,0.00163]
[1728593705206,0.29566487,59783.0,59782.0,0.00263]
[1728593705428,0.48366487,59783.0,59782.0,0.00263]
[1728593705852,0.47866487,59783.0,59782.0,0.00263]
[1728593706076,0.49432717,59783.0,59782.0,0.00263]
[1728593706520,0.49432717,59783.0,59782.0,0.00163]
[1728593706521,0.62432717,59783.0,59782.0,0.00163]
[1728593706730,0.4972363,59783.0,59782.0,0.00163]
[1728593706940,0.481574,59783.0,59782.0,0.00263]
[1728593707166,0.481574,59783.0,59782.0,0.00163]
[1728593707167,0.49723733,59783.0,59782.0,0.00163]
[1728593707375,0.481574,59783.0,59782.0,0.00163]
[1728593708258,0.481574,59783.0,59782.0,0.00263]
[1728593708692,0.481574,59783.0,59782.0,0.00363]
[1728593709105,0.481574,59783.0,59782.0,0.00263]
[1728593709332,0.481574,59783.0,59782.0,0.00363]
[1728593712482,0.60866487,59783.0,59782.0,0.00363]
[1728593714462,0.77797417,59783.0,59782.0,0.00363]
[1728593718257,0.6508833,59783.0,59782.0,0.00363]
[1728593719901,0.6488833,59783.0,59782.0,0.00363]
[1728593720538,0.6508833,59783.0,59782.0,0.00363]
[1728593722420,0.70192932,59783.0,59782.0,0.00363]
[1728593730317,0.75181191,59783.0,59782.0,0.00363]
[1728593732180,0.70192932,59783.0,59782.0,0.00363]
[1728593733210,0.77675321,59783.0,59782.0,0.00363]
[1728593733661,0.77680338,59783.0,59782.0,0.00363]
[1728593738186,0.70192932,59783.0,59782.0,0.00363]
[1728593738391,0.71762885,59783.0,59782.0,0.00363]
[1728593739478,0.70192932,59783.0,59782.0,0.00363]
[1728593740239,0.80178852,59783.0,59782.0,0.00363]
[1728593741679,0.70192932,59783.0,59782.0,0.00363]
[1728593756137,0.82902019,59783.0,59782.0,0.00363]
[1728593758318,0.70192932,59783.0,59782.0,0.00363]
[1728593758545,0.82902019,59783.0,59782.0,0.00363]
[1728593759164,0.1738,59771.0,59759.0,0.07530736]
[1728593759376,0.29990087,59765.0,59761.0,0.0955]
[1728593759826,0.34983987,59765.0,59761.0,0.0955]
[1728593760865,0.34983987,59765.0,59764.0,0.00963]
[1728593761095,0.34985182,59765.0,59764.0,0.00963]
[1728593761298,0.34985182,59765.0,59764.0,0.01363]
[1728593761503,0.29990087,59765.0,59764.0,0.01363]
[1728593761720,0.29990087,59765.0,59764.0,0.00163]